{"text_format":"3","workbook":"xlsx","n_sheets":6,"sheets":["Denník telefonických ponúk","Kontaktné informácie zákazníka","Pred telefonátom","Prvý telefonát","Informácie o predaji","Následné činnosti"],"not_rendered":{"defined_names":14},"read":"whole","date_system":"1900"}

{"sheet":"Denník telefonických ponúk","index":0,"n_rows":13,"n_cols":7,"rows_kept":13}
[null," Názov spoločnosti"]
[null,"Denník telefonických ponúk"]
[null,"Telefonát č.","Zákazník","Spoločnosť","Dátum","Čas","Poznámky"]
[null,1,"Juraj Kováč",{"$f":"IF(DenníkTelefonickýchPonúk[[#This Row],[Zákazník]]=\"\",\"\",IFERROR(VLOOKUP(DenníkTelefonickýchPonúk[[#This Row],[Zákazník]],KontaktnéInformácieZákazníka[],2,0),\"Not Found\"))","v":"Proseware, Inc."},{"$f":"TODAY()-5","v":"2016-10-14"},"08:30:00"]
[null,2,"Radomír Petráš",{"$f":"IF(DenníkTelefonickýchPonúk[[#This Row],[Zákazník]]=\"\",\"\",IFERROR(VLOOKUP(DenníkTelefonickýchPonúk[[#This Row],[Zákazník]],KontaktnéInformácieZákazníka[],2,0),\"Not Found\"))","v":"Litware, Inc."},{"$f":"TODAY()-5","v":"2016-10-14"},"09:00:00"]
[null,3,"Lenka Novotná",{"$f":"IF(DenníkTelefonickýchPonúk[[#This Row],[Zákazník]]=\"\",\"\",IFERROR(VLOOKUP(DenníkTelefonickýchPonúk[[#This Row],[Zákazník]],KontaktnéInformácieZákazníka[],2,0),\"Not Found\"))","v":"Northwind Traders"},"2016-10-14","09:30:00"]
[null,4,"Adam Nižniansky",{"$f":"IF(DenníkTelefonickýchPonúk[[#This Row],[Zákazník]]=\"\",\"\",IFERROR(VLOOKUP(DenníkTelefonickýchPonúk[[#This Row],[Zákazník]],KontaktnéInformácieZákazníka[],2,0),\"Not Found\"))","v":"Lucerne Publishing"},"2016-10-14","10:00:00"]
[null,5,"Branislav Polák",{"$f":"IF(DenníkTelefonickýchPonúk[[#This Row],[Zákazník]]=\"\",\"\",IFERROR(VLOOKUP(DenníkTelefonickýchPonúk[[#This Row],[Zákazník]],KontaktnéInformácieZákazníka[],2,0),\"Not Found\"))","v":"Margie's Travel"},"2016-10-14","10:30:00"]
[null,6,"Juraj Kováč",{"$f":"IF(DenníkTelefonickýchPonúk[[#This Row],[Zákazník]]=\"\",\"\",IFERROR(VLOOKUP(DenníkTelefonickýchPonúk[[#This Row],[Zákazník]],KontaktnéInformácieZákazníka[],2,0),\"Not Found\"))","v":"Proseware, Inc."},{"$f":"TODAY()-3","v":"2016-10-16"},"11:00:00"]
[null,7,"Radomír Petráš",{"$f":"IF(DenníkTelefonickýchPonúk[[#This Row],[Zákazník]]=\"\",\"\",IFERROR(VLOOKUP(DenníkTelefonickýchPonúk[[#This Row],[Zákazník]],KontaktnéInformácieZákazníka[],2,0),\"Not Found\"))","v":"Litware, Inc."},{"$f":"TODAY()-3","v":"2016-10-16"},"11:30:00"]
[null,8,"Juraj Kováč",{"$f":"IF(DenníkTelefonickýchPonúk[[#This Row],[Zákazník]]=\"\",\"\",IFERROR(VLOOKUP(DenníkTelefonickýchPonúk[[#This Row],[Zákazník]],KontaktnéInformácieZákazníka[],2,0),\"Not Found\"))","v":"Proseware, Inc."},{"$f":"TODAY()-1","v":"2016-10-18"},"12:00:00"]
[null,9,"Branislav Polák",{"$f":"IF(DenníkTelefonickýchPonúk[[#This Row],[Zákazník]]=\"\",\"\",IFERROR(VLOOKUP(DenníkTelefonickýchPonúk[[#This Row],[Zákazník]],KontaktnéInformácieZákazníka[],2,0),\"Not Found\"))","v":"Margie's Travel"},{"$f":"TODAY()-1","v":"2016-10-18"},"12:30:00"]
[null,10,"Branislav Polák",{"$f":"IF(DenníkTelefonickýchPonúk[[#This Row],[Zákazník]]=\"\",\"\",IFERROR(VLOOKUP(DenníkTelefonickýchPonúk[[#This Row],[Zákazník]],KontaktnéInformácieZákazníka[],2,0),\"Not Found\"))","v":"Margie's Travel"},{"$f":"TODAY()","v":"2016-10-19"},"13:00:00"]

{"sheet":"Kontaktné informácie zákazníka","index":1,"n_rows":8,"n_cols":8,"rows_kept":8}
[null,{"$f":"NázovSpoločnosti","v":" Názov spoločnosti"}]
[null,"Kontaktné informácie zákazníka"]
[null,"Meno zákazníka","Názov spoločnosti","Adresa","Mesto, PSČ","Primárny telefón","Sekundárny telefón","E-mail"]
[null,"Radomír Petráš","Litware, Inc.","Hlavná ul. 100","Nitra, 949 05","(037) 1234 5678","(037) 2345 6789","radomir@litwareinc.com"]
[null,"Adam Nižniansky","Lucerne Publishing","Malinová ul. 567","Zvolen, 960 01","(045) 2345 6789","(045) 3456 7891","adam@lucernepublishing.com"]
[null,"Branislav Polák","Margie's Travel","Hviezdoslavova ul. 987","Považská Bystrica, 017 01","(042) 3456 7891","(042) 4567 8912","branislav@margiestravel.com"]
[null,"Lenka Novotná","Northwind Traders","Slnečná ul. 890","Senica, 905 01","(034) 4567 8912","(034) 5678 1234","lenka@northwindtraders.com"]
[null,"Juraj Kováč","Proseware, Inc.","Námestie republiky 123","Trebišov, 075 01","(056) 5678 1234","(056) 1234 5678","juraj@proseware.com"]

{"sheet":"Pred telefonátom","index":2,"n_rows":13,"n_cols":3,"rows_kept":13}
[null,{"$f":"NázovSpoločnosti","v":" Názov spoločnosti"}]
[null,"Kontrolný zoznam telefonických ponúk"]
[null,"Začiarkavacie políčko","Pred telefonátom"]
[null,null,"Kontrola histórie zákazníka"]
[null,null,"Kontrola histórie zamestnávateľa zákazníka"]
[null,null,"Kontrola priorít a stratégie predaja"]
[null,null,"Pridať položku"]
[null,null,"Pridať položku"]
[null,null,"Pridať položku"]
[null,null,"Pridať položku"]
[null,null,"Pridať položku"]
[null,null,"Pridať položku"]
[null,null,"Pridať položku"]

{"sheet":"Prvý telefonát","index":3,"n_rows":13,"n_cols":3,"rows_kept":13}
[null,{"$f":"NázovSpoločnosti","v":" Názov spoločnosti"}]
[null,"Kontrolný zoznam telefonických ponúk"]
[null,"Začiarkavacie políčko","Prvý telefonát"]
[null,null,"Priamy telefonát príslušnej osobe"]
[null,null,"Zrozumiteľné predstavenie"]
[null,null,"Pridať položku"]
[null,null,"Pridať položku"]
[null,null,"Pridať položku"]
[null,null,"Pridať položku"]
[null,null,"Pridať položku"]
[null,null,"Pridať položku"]
[null,null,"Pridať položku"]
[null,null,"Pridať položku"]

{"sheet":"Informácie o predaji","index":4,"n_rows":13,"n_cols":3,"rows_kept":13}
[null,{"$f":"NázovSpoločnosti","v":" Názov spoločnosti"}]
[null,"Kontrolný zoznam telefonických ponúk"]
[null,"Začiarkavacie políčko","Informácie o predaji"]
[null,null,"Zrozumiteľné a pôsobivé predstavenie produktu alebo služby"]
[null,null,"Pokrytie všetkých základných bodov"]
[null,null,"Zmienka o informáciách na webe (napr. na webovej lokalite, sociálnej sieti)"]
[null,null,"Pridať položku"]
[null,null,"Pridať položku"]
[null,null,"Pridať položku"]
[null,null,"Pridať položku"]
[null,null,"Pridať položku"]
[null,null,"Pridať položku"]
[null,null,"Pridať položku"]

{"sheet":"Následné činnosti","index":5,"n_rows":13,"n_cols":3,"rows_kept":13}
[null,{"$f":"NázovSpoločnosti","v":" Názov spoločnosti"}]
[null,"Kontrolný zoznam telefonických ponúk"]
[null,"Začiarkavacie políčko","Informácie pre následné činnosti"]
[null,null,"Kontaktné informácie zákazníka"]
[null,null,"Osobné informácie zákazníka"]
[null,null,"Preferencie zákazníka"]
[null,null,"Presunutý termín?"]
[null,null,"Predaj uskutočnený?"]
[null,null,"Pridať položku"]
[null,null,"Pridať položku"]
[null,null,"Pridať položku"]
[null,null,"Pridať položku"]
[null,null,"Pridať položku"]